[Event "Netanya Open 2019"]
[Site "Netanya"]
[Date "2019.06.27"]
[Round "5.58"]
[White "Lomakin, Vladimir"]
[Black "Yusupoff, Yoav"]
[Result "0-1"]
[WhiteElo "1430"]
[BlackElo "1874"]
[PlyCount "64"]
[EventDate "2019.06.23"]
[EventType "swiss"]
[EventRounds "9"]
[EventCountry "ISR"]
[TimeControl "40/5400+30:1800+30"]

1. e4 c5 2. Nf3 e6 3. d4 cxd4 4. Nxd4 a6 5. Nc3 b5 6. a3 Qc7 7. Be2 Bb7 8. O-O Nf6 9. Bf3 d6 10. Re1 Nbd7 11. Nb3 Ne5 12. Bf4 Nfd7 13. Be2 Be7 14. Bg3 O-O 15. f4 Nc4 16. Rb1 Nxa3 17. Nxb5 Nxb5 18. c4 Na7 19. e5 dxe5 20. fxe5 Nc6 21. Bd3 Rfd8 22. Bxh7+ Kxh7 23. Qh5+ Kg8 24. c5 Nxc5 25. Rf1 Bf8 26. Nxc5 Bxc5+ 27. Kh1 Rd2 28. Rf4 Nd4 29. Bf2 Nf5 30. Rc1 Rxf2 31. Rxf2 Qxe5 32. Rfc2 Ng3+ 0-1

[Event "Netanya Open 2019"]
[Site "Netanya"]
[Date "2019.06.27"]
[Round "5.59"]
[White "Shetah, Roi"]
[Black "Kinberg, Raz"]
[Result "1-0"]
[WhiteElo "1836"]
[BlackElo "1385"]
[PlyCount "55"]
[EventDate "2019.06.23"]
[EventType "swiss"]
[EventRounds "9"]
[EventCountry "ISR"]
[TimeControl "40/5400+30:1800+30"]

1. e4 e5 2. Nf3 Nc6 3. Bc4 Bc5 4. O-O Nf6 5. d3 d6 6. a4 a6 7. c3 Bb6 8. h3 O-O 9. Nbd2 h6 10. Bb3 Qe7 11. Nc4 Ba7 12. a5 Bd7 13. Be3 Kh7 14. Bxa7 Rxa7 15. Bc2 Be6 16. Ne3 g5 17. d4 Bd7 18. Nd5 Qd8 19. dxe5 Ne8 20. exd6 cxd6 21. e5+ Kg7 22. Qd3 Rh8 23. Nb6 Be6 24. exd6 Qxd6 25. Qe3 Nc7 26. Rad1 Qe7 27. Nd4 Qc5 28. Nf5+ 1-0

[Event "Netanya Open 2019"]
[Site "Netanya"]
[Date "2019.06.27"]
[Round "5.60"]
[White "Segev, Ido"]
[Black "Zilbershtein, Victor"]
[Result "0-1"]
[WhiteElo "1382"]
[BlackElo "1756"]
[PlyCount "76"]
[EventDate "2019.06.23"]
[EventType "swiss"]
[EventRounds "9"]
[EventCountry "ISR"]
[TimeControl "40/5400+30:1800+30"]

1. d4 Nf6 2. c4 c5 3. Nf3 cxd4 4. Nxd4 g6 5. Nc3 Bg7 6. g3 O-O 7. Bg2 Nc6 8. e3 a6 9. O-O Ne5 10. b3 d6 11. h3 Rb8 12. f4 Ned7 13. Ba3 Qa5 14. Qc1 Qc7 15. f5 Ne5 16. fxg6 hxg6 17. Nf3 Nh5 18. Qe1 Qa5 19. Bb2 Nd3 20. Qd2 Nxb2 21. Nd5 Qxd2 22. Nxd2 Re8 23. g4 Nf6 24. Nb6 Nd3 25. Nxc8 Rexc8 26. Rad1 Nc5 27. b4 Ne6 28. Bd5 Nc7 29. Bg2 b5 30. cxb5 Nxb5 31. g5 Nd7 32. Rf2 Ne5 33. Nf3 Nxf3+ 34. Rxf3 Nc3 35. Rdf1 f5 36. gxf6 Bxf6 37. Rg3 Kh7 38. h4 Ne2+ 0-1

[Event "Netanya Open 2019"]
[Site "Netanya"]
[Date "2019.06.27"]
[Round "5.61"]
[White "Ribstein, Orel"]
[Black "Fudim, Basya"]
[Result "1/2-1/2"]
[WhiteElo "1697"]
[BlackElo "1332"]
[PlyCount "53"]
[EventDate "2019.06.23"]
[EventType "swiss"]
[EventRounds "9"]
[EventCountry "ISR"]
[TimeControl "40/5400+30:1800+30"]

1. d4 d5 2. Nf3 Nf6 3. c4 c6 4. g3 dxc4 5. Bg2 g6 6. O-O Bg7 7. Ne5 O-O 8. Na3 Nbd7 9. Naxc4 Nb6 10. Nxb6 axb6 11. e3 Be6 12. a3 Qb8 13. Nd3 Rd8 14. Qe2 Bc4 15. Qc2 Ba6 16. Rd1 Ne8 17. Rb1 e5 18. dxe5 Bxe5 19. b3 Bg7 20. a4 Qd6 21. Bf1 Qe7 22. Bg2 Rd7 23. Bb2 Rad8 24. Bf1 Nf6 25. Nf4 Bxf1 26. Kxf1 Ne4 27. Ke2 1/2-1/2

[Event "Netanya Open 2019"]
[Site "Netanya"]
[Date "2019.06.27"]
[Round "5.62"]
[White "Neeman, Ori"]
[Black "Neeman, Gal"]
[Result "0-1"]
[WhiteElo "1285"]
[BlackElo "1661"]
[PlyCount "76"]
[EventDate "2019.06.23"]
[EventType "swiss"]
[EventRounds "9"]
[EventCountry "ISR"]
[TimeControl "40/5400+30:1800+30"]

1. e4 c5 2. d3 Nc6 3. Be3 e6 4. Nf3 Qc7 5. a3 Nf6 6. Nbd2 d5 7. g3 h6 8. Nb3 d4 9. Bf4 e5 10. Bd2 Be7 11. c3 Be6 12. cxd4 cxd4 13. Qc2 Qb6 14. Nc1 Rc8 15. Rb1 Nb4 16. Qa4+ Bd7 17. Qb3 Nc2+ 18. Ke2 Qa6 19. Nxe5 Be6 20. Nc4 Rxc4 21. dxc4 Bxc4+ 22. Kf3 Qc6 23. Qxc2 Be2+ 24. Bxe2 Qxc2 25. Nd3 Qxd2 26. Rhd1 Qa5 27. Nf4 Qe5 28. Bd3 O-O 29. Re1 Rc8 30. Kg2 g5 31. Nh3 Nd7 32. Rbc1 Rxc1 33. Rxc1 Nc5 34. Bc4 d3 35. Bd5 Qxb2 36. Rd1 d2 37. Kf1 Qc2 38. Ke2 Qd3# 0-1

[Event "Netanya Open 2019"]
[Site "Netanya"]
[Date "2019.06.27"]
[Round "5.63"]
[White "Usha Margolin, Daniel"]
[Black "Kadosh, Lior"]
[Result "0-1"]
[WhiteElo "1437"]
[BlackElo "1649"]
[PlyCount "46"]
[EventDate "2019.06.23"]
[EventType "swiss"]
[EventRounds "9"]
[EventCountry "ISR"]
[TimeControl "40/5400+30:1800+30"]

1. e4 e5 2. Nf3 Nc6 3. Nc3 Nf6 4. Bb5 Bb4 5. O-O O-O 6. d3 d6 7. Bg5 Bxc3 8. bxc3 h6 9. Bh4 Bg4 10. Re1 g5 11. Bg3 Ne7 12. h4 gxh4 13. Bxh4 Ng6 14. Bg3 Nh5 15. d4 Qf6 16. Be2 Nhf4 17. Rb1 b6 18. d5 Qg7 19. Qd2 h5 20. Kf1 h4 21. Bxf4 Nxf4 22. Ng1 Bxe2+ 23. Nxe2 Qxg2# 0-1

[Event "Netanya Open 2019"]
[Site "Netanya"]
[Date "2019.06.27"]
[Round "5.65"]
[White "Scheinfeild, Michael"]
[Black "Lisnovetzky, Daniel"]
[Result "1-0"]
[WhiteElo "1582"]
[BlackElo "1320"]
[PlyCount "40"]
[EventDate "2019.06.23"]
[EventType "swiss"]
[EventRounds "9"]
[EventCountry "ISR"]
[TimeControl "40/5400+30:1800+30"]

1. Nf3 Nf6 2. d4 c5 3. e3 e6 4. c4 d5 5. Nc3 Nc6 6. Be2 b6 7. O-O g6 8. cxd5 exd5 9. Bb5 Bb7 10. Ne5 Qc7 11. Qf3 Bg7 12. Nxd5 Nxd5 13. Qxd5 O-O 14. Nxc6 Rfd8 15. Qe4 cxd4 16. exd4 a6 17. Bf4 Rxd4 18. Qxd4 Bxd4 19. Bxc7 Bxc6 20. Bxc6 Rc8 1-0

[Event "Netanya Open 2019"]
[Site "Netanya"]
[Date "2019.06.27"]
[Round "5.66"]
[White "Havakuk, Elad"]
[Black "Lazebnikov, Efim"]
[Result "0-1"]
[WhiteElo "1350"]
[BlackElo "1444"]
[PlyCount "66"]
[EventDate "2019.06.23"]
[EventType "swiss"]
[EventRounds "9"]
[EventCountry "ISR"]
[TimeControl "40/5400+30:1800+30"]

1. e4 e6 2. d4 b6 3. g3 Bb7 4. Bg2 g6 5. Nc3 Bg7 6. Nf3 Ne7 7. O-O O-O 8. Re1 c5 9. e5 cxd4 10. Nxd4 Bxg2 11. Kxg2 Nbc6 12. Nf3 a6 13. a4 Qc7 14. Bf4 h6 15. h4 Qb7 16. Ne4 Nd5 17. Nd6 Nxf4+ 18. gxf4 Qc7 19. c3 Ne7 20. Nd4 Nd5 21. Qf3 f6 22. Qe4 fxe5 23. fxe5 Nf4+ 24. Kh1 Qd8 25. Nf3 g5 26. hxg5 hxg5 27. Rg1 Nh3 28. Rg2 Rf4 29. Qd3 g4 30. Qg6 Rxf3 31. Rxg4 Nxf2+ 32. Kg2 Nxg4 33. Kxf3 Nxe5+ 0-1

[Event "Netanya Open 2019"]
[Site "Netanya"]
[Date "2019.06.27"]
[Round "5.67"]
[White "Sivan, Guy"]
[Black "Ben Hemo, Guy"]
[Result "1-0"]
[WhiteElo "1246"]
[BlackElo "1453"]
[PlyCount "78"]
[EventDate "2019.06.23"]
[EventType "swiss"]
[EventRounds "9"]
[EventCountry "ISR"]
[TimeControl "40/5400+30:1800+30"]

1. e4 c5 2. d4 cxd4 3. c3 dxc3 4. Nxc3 d6 5. Bc4 Nf6 6. Bf4 e5 7. Bd2 Be7 8. Nf3 O-O 9. O-O Nxe4 10. Nxe4 d5 11. Nxe5 dxc4 12. Nxc4 Qd4 13. Qe2 Be6 14. Rac1 Nc6 15. Rfd1 Bxc4 16. Rxc4 Qxb2 17. Qg4 Ne5 18. Qg3 Nxc4 19. Bc3 Qxc3 20. Nxc3 Rad8 21. Nd5 Bd6 22. Qb3 Nb6 23. Ne3 Bc7 24. g3 h6 25. Nf5 Rxd1+ 26. Qxd1 Rd8 27. Qb3 Rd7 28. Qe3 Kf8 29. Qc5+ Kg8 30. Qc3 f6 31. Qb3+ Kh7 32. Qe6 Be5 33. Ne7 Rd8 34. Qf5+ Kh8 35. Ng6+ Kg8 36. Qe6+ Kh7 37. Nxe5 fxe5 38. Qxe5 Rd2 39. Qa5 Nd5 1-0

[Event "Netanya Open 2019"]
[Site "Netanya"]
[Date "2019.06.27"]
[Round "5.68"]
[White "Mendler, Omer"]
[Black "Khairova, Evelina"]
[Result "1-0"]
[WhiteElo "1231"]
[BlackElo "1501"]
[PlyCount "57"]
[EventDate "2019.06.23"]
[EventType "swiss"]
[EventRounds "9"]
[EventCountry "ISR"]
[TimeControl "40/5400+30:1800+30"]

1. e4 e6 2. d4 d5 3. exd5 exd5 4. Nf3 Nf6 5. c3 Bd6 6. Bd3 O-O 7. O-O h6 8. h3 Re8 9. Be3 Bd7 10. Qb3 Qc8 11. Re1 Nc6 12. Nbd2 Rb8 13. c4 Be6 14. c5 Be7 15. Qc3 Nd7 16. b4 b6 17. Nf1 Bf6 18. Rab1 b5 19. Qd2 Ne7 20. Ng3 Nf8 21. Nh5 Nd7 22. Nxf6+ Nxf6 23. Bxh6 gxh6 24. Qxh6 Bf5 25. Qg5+ Kf8 26. Qxf6 Bxd3 27. Rxe7 Bg6 28. Rbe1 Rxe7 29. Qh8# 1-0

[Event "Netanya Open 2019"]
[Site "Netanya"]
[Date "2019.06.27"]
[Round "5.69"]
[White "Marques, Don"]
[Black "Friedland, Benzi"]
[Result "0-1"]
[WhiteElo "1179"]
[BlackElo "1189"]
[PlyCount "162"]
[EventDate "2019.06.23"]
[EventType "swiss"]
[EventRounds "9"]
[EventCountry "ISR"]
[TimeControl "40/5400+30:1800+30"]

1. e4 d5 2. exd5 Qxd5 3. Nc3 Qa5 4. d4 Nf6 5. Bd2 c6 6. Ne4 Qb6 7. Nxf6+ gxf6 8. Bc3 Bf5 9. Nf3 Nd7 10. Bd3 Bg6 11. O-O O-O-O 12. Nh4 e6 13. a3 Be7 14. Be2 e5 15. d5 Nc5 16. Bg4+ Kb8 17. Qf3 Be4 18. Qe3 cxd5 19. Qd2 Rhg8 20. Bf5 Rg7 21. Ba5 Qc6 22. Bxd8 Bxd8 23. f3 Bxf5 24. Nxf5 Rg5 25. g4 Qe6 26. Rae1 Qxf5 27. Qxd5 Qc8 28. Rd1 Ne6 29. Qd6+ Bc7 30. Qd7 Rg7 31. Qxc8+ Kxc8 32. Kg2 h5 33. Kh3 Rg5 34. Kh4 Nf4 35. Rf2 Bb6 36. Rfd2 f5 37. Kxg5 hxg4 38. fxg4 fxg4 39. Kxg4 Ne6 40. Rf1 Be3 41. Rd6 Bf4 42. h4 Nd4 43. c3 Nc2 44. Rh1 Ne3+ 45. Kf3 Nc4 46. Rf6 Nd2+ 47. Kg4 Ne4 48. Rxf7 Nf2+ 49. Kf3 Nxh1 50. h5 Ng3 51. Kg4 Ne4 52. Kf5 Nd6+ 53. Kg6 Nxf7 54. Kf5 Nh6+ 55. Ke4 Kc7 56. Kd5 Kb6 57. c4 Nf7 58. b4 a6 59. a4 Bd2 60. a5+ Ka7 61. Ke6 Bh6 62. Kf5 Bf4 63. Ke4 b6 64. c5 bxc5 65. bxc5 Kb7 66. Kf5 Kc6 67. Ke6 Kxc5 68. Kxf7 e4 69. Kf6 e3 70. Kf5 e2 71. Kxf4 e1=Q 72. Kg5 Qe5+ 73. Kg6 Qh8 74. h6 Kb5 75. h7 Kxa5 76. Kf5 Kb4 77. Ke4 Kb3 78. Kd3 a5 79. Kd2 a4 80. Kc1 a3 81. Kb1 Qb2# 0-1

[Event "Netanya Open 2019"]
[Site "Netanya"]
[Date "2019.06.28"]
[Round "6.2"]
[White "Svetushkin, Dmitry"]
[Black "Gorodetzky, David"]
[Result "1-0"]
[ECO "C11"]
[WhiteElo "2532"]
[BlackElo "2461"]
[Annotator "ChessBase"]
[PlyCount "83"]
[EventDate "2019.06.23"]
[EventType "swiss"]
[EventCountry "ISR"]
[SourceTitle "playchess.com"]
[Source "ChessBase"]
[SourceQuality "1"]
[TimeControl "40/5400+30:1800+30"]

1. e4 {[%emt 0:00:00]} e6 {[%emt 0:01:41]} 2. d4 {[%emt 0:00:08]} d5 {[%emt 0:00:13]} 3. Nc3 {[%emt 0:00:21]} Nf6 {[%emt 0:01:55]} 4. e5 {[%emt 0:00:48]} Nfd7 {[%emt 0:00:04]} 5. f4 {[%emt 0:00:23]} c5 {[%emt 0:00:07]} 6. Nf3 {[%emt 0:00:23]} Nc6 {[%emt 0:00:03]} 7. Be3 {[%emt 0:00:10]} a6 {[%emt 0:00:05]} 8. Qd2 {[%emt 0:00:27]} b5 {[%emt 0:00:08]} 9. a3 {[%emt 0:01:03]} Qb6 {[%emt 0:19:38]} 10. Ne2 {[%emt 0:01:58]} Be7 {[%emt 0:05:49]} 11. dxc5 {[%emt 0:10:57]} Bxc5 {[%emt 0:00:06]} 12. Ned4 {[%emt 0:00:08]} g5 {[%emt 0:19:58]} 13. g3 {[%emt 0:08:55]} g4 {[%emt 0:06:30]} 14. b4 {[%emt 0:02:12]} gxf3 {[%emt 0:03:25]} 15. bxc5 {[%emt 0:01:56]} Qc7 {[%emt 0:00:07]} 16. a4 {[%emt 0:10:53]} bxa4 {[%emt 0:04:05]} 17. Qc3 {[%emt 0:10:36]} Bb7 {[%emt 0:04:53]} 18. Bd3 {[%emt 0:04:27]} Nxd4 {[%emt 0:10:13]} 19. Bxd4 {[%emt 0:00:21]} Bc6 {[%emt 0:05:54]} 20. O-O {[%emt 0:02:18]} Bb5 {[%emt 0:00:01]} 21. Rxf3 {[%emt 0:02:41]} Rc8 {[%emt 0:03:45]} 22. Qb4 {[%emt 0:09:16]} Rb8 {[%emt 0:00:51]} 23. Bxb5 {[%emt 0:04:21]} Rxb5 {[%emt 0:02:33]} 24. Qxa4 {[%emt 0:00:15]} Nxc5 {[%emt 0:00:41]} 25. Rc3 {[%emt 0:06:57]} O-O {[%emt 0:00:09]} 26. Qa3 {[%emt 0:00:05]} Rc8 {[%emt 0:00:06]} 27. f5 {[%emt 0:00:07]} exf5 {[%emt 0:04:28]} 28. Rf1 {[%emt 0:00:36]} Qb6 {[%emt 0:00:58]} 29. Qc1 {[%emt 0:04:27]} Qd8 {[%emt 0:03:03]} 30. Qf4 {[%emt 0:06:33]} Ne6 {[%emt 0:00:49]} 31. Qxf5 {[%emt 0:00:13]} Rb7 {[%emt 0:00:13]} 32. Qg4+ {[%emt 0:02:22]} Kh8 {[%emt 0:00:30]} 33. Rxf7 {[%emt 0:00:41]} Rxf7 {[%emt 0:01:41]} 34. Qxe6 {[%emt 0:00:05]} Rcc7 {[%emt 0:01:24]} 35. Qg4 {[%emt 0:02:55]} Rxc3 {[%emt 0:00:50]} 36. e6+ {[%emt 0:00:28]} Rf6 {[%emt 0:00:09]} 37. Bxc3 {[%emt 0:00:41]} h6 {[%emt 0:00:53]} 38. Qd4 {[%emt 0:04:48]} Kg7 {[%emt 0:00:02]} 39. Qe5 {[%emt 0:01:08]} Qb6+ {[%emt 0:00:57]} 40. Kg2 {[%emt 0:01:05]} Qf2+ {[%emt 0:00:31]} 41. Kh3 {[%emt 0:30:03]} Qf1+ {[%emt 0:15:36]} 42. Kh4 {[%emt 0:00:00]} 1-0

[Event "Netanya Open 2019"]
[Site "Netanya"]
[Date "2019.06.28"]
[Round "6.3"]
[White "Khmelniker, Ilya"]
[Black "Zubov, Alexander"]
[Result "0-1"]
[ECO "D90"]
[WhiteElo "2483"]
[BlackElo "2597"]
[Annotator "ChessBase"]
[PlyCount "62"]
[EventDate "2019.06.23"]
[EventType "swiss"]
[EventCountry "ISR"]
[SourceTitle "playchess.com"]
[Source "ChessBase"]
[SourceQuality "1"]
[TimeControl "40/5400+30:1800+30"]

1. d4 {[%emt 0:00:00]} Nf6 {[%emt 0:00:00]} 2. c4 {[%emt 0:00:00]} g6 {[%emt 0:00:00]} 3. Nc3 {[%emt 0:00:03]} d5 {[%emt 0:00:00]} 4. Nf3 {[%emt 0:00:23]} Bg7 {[%emt 0:00:04]} 5. h4 {[%emt 0:00:13]} c6 {[%emt 0:00:05]} 6. cxd5 {[%emt 0:00:06]} cxd5 {[%emt 0:00:05]} 7. Bf4 {[%emt 0:00:05]} Nc6 {[%emt 0:01:11]} 8. e3 {[%emt 0:01:55]} O-O {[%emt 0:00:30]} 9. Qb3 {[%emt 0:00:28]} Na5 {[%emt 0:02:39]} 10. Qa3 {[%emt 0:02:24]} Nc6 {[%emt 0:02:28]} 11. Be2 {[%emt 0:03:25]} Bg4 {[%emt 0:04:05]} 12. Ne5 {[%emt 0:11:36]} Bxe2 {[%emt 0:01:20]} 13. Nxc6 {[%emt 0:00:09]} bxc6 {[%emt 0:00:05]} 14. Nxe2 {[%emt 0:00:06]} Nd7 {[%emt 0:01:02]} 15. Rc1 {[%emt 0:31:46]} e5 {[%emt 0:23:38]} 16. dxe5 {[%emt 0:00:05]} Nxe5 {[%emt 0:01:51]} 17. Bxe5 {[%emt 0:00:48]} Bxe5 {[%emt 0:00:04]} 18. Rxc6 {[%emt 0:00:09]} Re8 {[%emt 0:08:54]} 19. h5 {[%emt 0:11:53]} d4 {[%emt 0:06:28]} 20. hxg6 {[%emt 0:00:37]} hxg6 {[%emt 0:00:29]} 21. Nxd4 {[%emt 0:03:07]} Qd5 {[%emt 0:04:27]} 22. Qb3 {[%emt 0:06:11]} Qxg2 {[%emt 0:02:22]} 23. Rh6 {[%emt 0:18:02]} Kg7 {[%emt 0:02:42]} 24. Qb7 {[%emt 0:02:16]} Qg1+ {[%emt 0:11:01]} 25. Ke2 {[%emt 0:00:01]} Kxh6 {[%emt 0:01:17]} 26. Nf5+ {[%emt 0:01:11]} Kg5 {[%emt 0:05:25]} 27. Nh4 {[%emt 0:04:55]} Qg4+ {[%emt 0:04:43]} 28. f3 {[%emt 0:01:34]} Qxh4 {[%emt 0:00:11]} 29. Qxf7 {[%emt 0:00:23]} Qh2+ {[%emt 0:04:15]} 30. Kf1 {[%emt 0:00:13]} Qh1+ {[%emt 0:00:22]} 31. Kf2 {[%emt 0:00:52]} Bg3+ {[%emt 0:00:14]} 0-1

[Event "Netanya Open 2019"]
[Site "Netanya"]
[Date "2019.06.28"]
[Round "6.4"]
[White "Mikhalevski, Victor"]
[Black "Bronstein, Or"]
[Result "1-0"]
[ECO "A35"]
[WhiteElo "2579"]
[BlackElo "2378"]
[Annotator "ChessBase"]
[PlyCount "89"]
[EventDate "2019.06.23"]
[EventType "swiss"]
[EventCountry "ISR"]
[SourceTitle "playchess.com"]
[Source "ChessBase"]
[SourceQuality "1"]
[TimeControl "40/5400+30:1800+30"]

1. Nf3 {[%emt 0:00:00]} c5 {[%emt 0:00:00]} 2. c4 {[%emt 0:00:19]} Nc6 {[%emt 0:00:07]} 3. Nc3 {[%emt 0:00:30]} g6 {[%emt 0:00:30]} 4. e3 {[%emt 0:00:30]} Nf6 {[%emt 0:00:30]} 5. d4 {[%emt 0:00:30]} cxd4 {[%emt 0:00:30]} 6. exd4 {[%emt 0:00:30]} d5 {[%emt 0:00:30]} 7. cxd5 {[%emt 0:00:30]} Nxd5 {[%emt 0:00:30]} 8. Qb3 {[%emt 0:00:30]} e6 {[%emt 0:00:30]} 9. Bb5 {[%emt 0:00:30]} Bg7 {[%emt 0:00:30]} 10. O-O {[%emt 0:00:30]} O-O {[%emt 0:00:30]} 11. Bxc6 {[%emt 0:00:30]} bxc6 {[%emt 0:00:30]} 12. Bd2 {[%emt 0:00:30]} Qb6 {[%emt 0:00:30]} 13. Na4 {[%emt 0:00:30]} Qxb3 {[%emt 0:00:30]} 14. axb3 {[%emt 0:00:30]} Ba6 {[%emt 0:00:30]} 15. Rfc1 {[%emt 0:00:30]} Bb5 {[%emt 0:00:30]} 16. Nc5 {[%emt 0:00:30]} Rfd8 {[%emt 0:00:30]} 17. Ba5 {[%emt 0:00:30]} Re8 {[%emt 0:00:30]} 18. Bd2 {[%emt 0:00:30]} Red8 {[%emt 0:00:30]} 19. Re1 {[%emt 0:00:30]} Nb6 {[%emt 0:00:30]} 20. Ba5 {[%emt 0:00:30]} Rac8 {[%emt 0:00:30]} 21. Bc3 {[%emt 0:00:30]} Ra8 {[%emt 0:00:30]} 22. Ne5 {[%emt 0:00:30]} Rd5 {[%emt 0:00:30]} 23. f4 {[%emt 0:00:30]} h5 {[%emt 0:00:30]} 24. Ra5 {[%emt 0:00:30]} Nc8 {[%emt 0:00:30]} 25. Rea1 {[%emt 0:00:30]} g5 {[%emt 0:00:30]} 26. Na6 {[%emt 0:00:30]} Bxa6 {[%emt 0:00:30]} 27. Rxa6 {[%emt 0:00:30]} c5 {[%emt 0:00:30]} 28. R1a5 {[%emt 0:00:30]} gxf4 {[%emt 0:00:30]} 29. Rxc5 {[%emt 0:00:30]} Ne7 {[%emt 0:00:30]} 30. Nf3 {[%emt 0:00:30]} Rd7 {[%emt 0:00:30]} 31. Rxh5 {[%emt 0:00:30]} Nf5 {[%emt 0:00:30]} 32. Rg5 {[%emt 0:00:30]} Kh7 {[%emt 0:00:30]} 33. Rg4 {[%emt 0:00:30]} Bh6 {[%emt 0:00:30]} 34. Ne5 {[%emt 0:00:30]} Rb7 {[%emt 0:00:30]} 35. d5 {[%emt 0:00:30]} Ne3 {[%emt 0:00:30]} 36. Rh4 {[%emt 0:00:30]} Rg8 {[%emt 0:00:30]} 37. dxe6 {[%emt 0:00:30]} Rxg2+ {[%emt 0:00:30]} 38. Kh1 {[%emt 0:00:30]} Rc2 {[%emt 0:00:30]} 39. Rxh6+ {[%emt 0:00:30]} Kxh6 {[%emt 0:00:30]} 40. exf7+ {[%emt 0:00:30]} Kh7 {[%emt 0:00:30]} 41. Rh6+ {[%emt 0:30:30]} Kxh6 {[%emt 0:30:30]} 42. f8=Q+ {[%emt 0:00:30]} Kh7 {[%emt 0:00:30]} 43. Nd3 {[%emt 0:00:30]} Rd7 {[%emt 0:00:30]} 44. Qh8+ {[%emt 0:00:30]} Kg6 {[%emt 0:00:30]} 45. Qe8+ {[%emt 0:00:30]} 1-0

[Event "Netanya Open 2019"]
[Site "Netanya"]
[Date "2019.06.28"]
[Round "6.9"]
[White "Kantsler, Boris"]
[Black "Sivuk, Vitaly"]
[Result "1/2-1/2"]
[ECO "E60"]
[WhiteElo "2420"]
[BlackElo "2547"]
[Annotator "ChessBase"]
[PlyCount "84"]
[EventDate "2019.06.23"]
[EventType "swiss"]
[EventCountry "ISR"]
[SourceTitle "playchess.com"]
[Source "ChessBase"]
[SourceQuality "1"]
[TimeControl "40/5400+30:1800+30"]

1. d4 {[%emt 0:00:00]} Nf6 {[%emt 0:00:00]} 2. c4 {[%emt 0:00:00]} g6 {[%emt 0:00:00]} 3. Nf3 {[%emt 0:00:17]} Bg7 {[%emt 0:00:02]} 4. g3 {[%emt 0:00:05]} c5 {[%emt 0:00:10]} 5. Bg2 {[%emt 0:00:49]} Qa5+ {[%emt 0:00:12]} 6. Nc3 {[%emt 0:03:03]} Ne4 {[%emt 0:00:31]} 7. Bd2 {[%emt 0:00:07]} Nxd2 {[%emt 0:01:08]} 8. Qxd2 {[%emt 0:00:02]} Nc6 {[%emt 0:07:14]} 9. dxc5 {[%emt 0:02:34]} Qxc5 {[%emt 0:01:50]} 10. Nd5 {[%emt 1:28:03]} O-O {[%emt 0:04:48]} 11. Rc1 {[%emt 0:00:00]} a5 {[%emt 0:01:47]} 12. O-O {[%emt 0:00:00]} Rb8 {[%emt 0:04:55]} 13. a3 {[%emt 0:00:00]} a4 {[%emt 0:01:28]} 14. Ne1 {[%emt 0:00:00]} b6 {[%emt 0:17:26]} 15. Nd3 {[%emt 0:00:00]} Qa5 {[%emt 0:01:05]} 16. Qf4 {[%emt 0:00:00]} Qa7 {[%emt 0:06:51]} 17. e3 {[%emt 0:00:00]} Ba6 {[%emt 0:06:57]} 18. Rc2 {[%emt 0:00:00]} e6 {[%emt 0:07:36]} 19. N5b4 {[%emt 0:00:00]} Nxb4 {[%emt 0:04:12]} 20. Nxb4 {[%emt 0:00:00]} Bb7 {[%emt 0:00:29]} 21. Bxb7 {[%emt 0:00:00]} Qxb7 {[%emt 0:00:40]} 22. Rfc1 {[%emt 0:00:00]} Rfd8 {[%emt 0:02:57]} 23. Nd3 {[%emt 0:00:00]} d6 {[%emt 0:00:47]} 24. Nb4 {[%emt 0:00:00]} Rbc8 {[%emt 0:00:59]} 25. Qg4 {[%emt 0:00:00]} Rc5 {[%emt 0:02:32]} 26. Qe2 {[%emt 0:00:00]} h5 {[%emt 0:01:22]} 27. Nd3 {[%emt 0:00:00]} Rc7 {[%emt 0:00:43]} 28. h4 {[%emt 0:00:00]} Rdc8 {[%emt 0:03:40]} 29. Nb4 {[%emt 0:00:00]} Qe4 {[%emt 0:01:22]} 30. f3 {[%emt 0:00:00]} Qe5 {[%emt 0:03:43]} 31. Kg2 {[%emt 0:00:00]} d5 {[%emt 0:01:16]} 32. Nd3 {[%emt 0:03:14]} Qd6 {[%emt 0:00:32]} 33. cxd5 {[%emt 0:00:25]} Rxc2 {[%emt 0:01:55]} 34. Rxc2 {[%emt 0:00:00]} Rxc2 {[%emt 0:00:10]} 35. Qxc2 {[%emt 0:00:01]} Qxd5 {[%emt 0:00:10]} 36. Nf2 {[%emt 0:02:47]} Qb5 {[%emt 0:05:46]} 37. Nd1 {[%emt 0:01:35]} Bf6 {[%emt 0:04:34]} 38. Kf2 {[%emt 0:00:14]} Qd7 {[%emt 0:05:23]} 39. Nc3 {[%emt 0:03:14]} Qc7 {[%emt 0:01:39]} 40. Qxa4 {[%emt 0:02:04]} Bxc3 {[%emt 0:00:10]} 41. bxc3 {[%emt 0:30:03]} Qxc3 {[%emt 0:30:09]} 42. Qb4 {[%emt 0:00:17]} Qc2+ {[%emt 0:00:50]} 1/2-1/2

[Event "Netanya Open 2019"]
[Site "Netanya"]
[Date "2019.06.28"]
[Round "6.10"]
[White "Rozentalis, Eduardas"]
[Black "Emanuel, Yahav"]
[Result "1-0"]
[ECO "C55"]
[WhiteElo "2540"]
[BlackElo "2359"]
[Annotator "ChessBase"]
[PlyCount "89"]
[EventDate "2019.06.23"]
[EventType "swiss"]
[EventCountry "ISR"]
[SourceTitle "playchess.com"]
[Source "ChessBase"]
[SourceQuality "1"]
[TimeControl "40/5400+30:1800+30"]

1. e4 {[%emt 0:00:00]} e5 {[%emt 0:00:00]} 2. Nf3 {[%emt 0:00:03]} Nc6 {[%emt 0:00:00]} 3. Bc4 {[%emt 0:00:10]} Nf6 {[%emt 0:00:01]} 4. d3 {[%emt 0:00:07]} Be7 {[%emt 0:00:23]} 5. O-O {[%emt 0:00:58]} O-O {[%emt 0:00:14]} 6. c3 {[%emt 0:00:10]} d5 {[%emt 0:04:18]} 7. exd5 {[%emt 0:05:32]} Nxd5 {[%emt 0:00:02]} 8. Re1 {[%emt 0:01:12]} Nb6 {[%emt 0:02:26]} 9. Bb5 {[%emt 0:01:41]} f6 {[%emt 0:01:50]} 10. Bxc6 {[%emt 0:05:11]} bxc6 {[%emt 0:00:02]} 11. d4 {[%emt 0:00:10]} exd4 {[%emt 0:04:20]} 12. Nxd4 {[%emt 0:02:35]} c5 {[%emt 0:12:38]} 13. Nc6 {[%emt 0:02:20]} Qxd1 {[%emt 0:00:08]} 14. Nxe7+ {[%emt 0:00:08]} Kf7 {[%emt 0:00:05]} 15. Rxd1 {[%emt 0:00:05]} Kxe7 {[%emt 0:00:10]} 16. Be3 {[%emt 0:01:56]} Re8 {[%emt 0:32:04]} 17. Bxc5+ {[%emt 0:04:35]} Kf7 {[%emt 0:00:55]} 18. b3 {[%emt 0:02:06]} Bf5 {[%emt 0:01:50]} 19. Na3 {[%emt 0:07:03]} c6 {[%emt 0:02:25]} 20. Bxb6 {[%emt 0:06:22]} axb6 {[%emt 0:00:02]} 21. Nc4 {[%emt 0:00:12]} Re2 {[%emt 0:02:00]} 22. a4 {[%emt 0:01:05]} Be6 {[%emt 0:07:19]} 23. Nxb6 {[%emt 0:12:17]} Ra6 {[%emt 0:01:00]} 24. a5 {[%emt 0:02:25]} Bxb3 {[%emt 0:00:21]} 25. Rd7+ {[%emt 0:00:36]} Kg6 {[%emt 0:01:46]} 26. h3 {[%emt 0:02:28]} Re5 {[%emt 0:11:39]} 27. Ra3 {[%emt 0:04:45]} Be6 {[%emt 0:08:49]} 28. Re7 {[%emt 0:02:01]} Bf5 {[%emt 0:01:06]} 29. Rxe5 {[%emt 0:03:33]} fxe5 {[%emt 0:00:01]} 30. Nc4 {[%emt 0:01:33]} Kf6 {[%emt 0:00:05]} 31. Nd6 {[%emt 0:00:19]} Be6 {[%emt 0:03:34]} 32. Ne8+ {[%emt 0:03:16]} Kf7 {[%emt 0:00:27]} 33. Nc7 {[%emt 0:00:07]} Ra7 {[%emt 0:00:07]} 34. Nxe6 {[%emt 0:00:11]} Kxe6 {[%emt 0:00:01]} 35. Kf1 {[%emt 0:00:49]} Kd5 {[%emt 0:03:52]} 36. Ke2 {[%emt 0:00:13]} Ra6 {[%emt 0:01:04]} 37. Ke3 {[%emt 0:00:20]} c5 {[%emt 0:00:28]} 38. f3 {[%emt 0:01:28]} g6 {[%emt 0:00:31]} 39. h4 {[%emt 0:00:35]} h6 {[%emt 0:00:36]} 40. Ra4 {[%emt 0:00:14]} c4 {[%emt 0:00:47]} 41. Ra1 {[%emt 0:30:15]} h5 {[%emt 0:15:14]} 42. Ra2 {[%emt 0:00:00]} Kd6 {[%emt 0:00:20]} 43. Ke4 {[%emt 0:00:00]} Ke6 {[%emt 0:00:03]} 44. g3 {[%emt 0:00:00]} Kd6 {[%emt 0:00:46]} 45. Rd2+ {[%emt 0:00:00]} 1-0